fUSD/lending_fUSD_20241031
["ID","MTS","AMOUNT","RATE_DAILY","PERIOD"]
[341100135,1730365843275,-1000.0,0.000598,7]
[341100136,1730365843285,-500000.0,0.000598,120]
[341100137,1730365843294,-521249.94057671,0.000598,120]
[341100138,1730365843306,-29238.84128205,0.000598,120]
[341100141,1730365846116,-64993.35507929,0.000598,120]
[341100142,1730365846127,-412.34292774,0.000598,120]
[341100144,1730365846137,-12826.0243607,0.000598,30]
[341100145,1730365846146,-778.14,0.000598,60]
[341100146,1730365846156,-431.43,0.000598,60]
[341100147,1730365846166,-11853.41260586,0.000598,120]
[341100148,1730365846176,-12466.55342436,0.0005983,120]
[341100149,1730365846188,-37533.44657564,0.0005983,120]
[341100150,1730365846197,-7797.73458335,0.0005987,30]
[341100151,1730365846209,-52876.9423308,0.0005987,30]
[341100152,1730365846219,-586.93,0.00059999,120]
[341100153,1730365846228,-453.91348963,0.00059999,120]
[341100155,1730366029489,157.73,0.00015342,2]
[341100156,1730366058928,-157.73,0.00035616,2]
[341100160,1730366441684,-4405.173595,0.0005043,5]
[341100161,1730366441708,-5594.826405,0.00050684,120]
[341100162,1730366444187,-3887.90367969,0.00050684,120]
[341100163,1730366444210,-6112.09632031,0.00052184,120]
[341100167,1730366666417,360.0,0.0005,2]
[341100170,1730366707882,9640.0,0.00016,2]
[341100171,1730366707908,10000.0,0.00016,2]
[341100172,1730366707935,9842.27,0.00016,2]
[341100173,1730366707959,8463.05364516,0.00016,2]
[341100174,1730366707984,8855.06,0.00016,2]
[341100175,1730366708009,9500.0,0.00016,2]
[341100176,1730366708049,11203.3,0.00016,2]
[341100177,1730366708106,1187691.02534325,0.00016,2]
[341100180,1730366836161,-152.0,0.0005064,3]
[341100181,1730366836181,-7923.24744419,0.00050684,120]
[341100182,1730366836201,-7923.24744419,0.00052184,120]
[341100183,1730366836220,-542.367086,0.00052944,120]
[341100184,1730366836239,-7923.24744419,0.00053684,120]
[341100185,1730366836263,-478.07,0.0005399,5]
[341100186,1730366836282,-700.0,0.0005399,29]
[341100187,1730366836302,-700.0,0.0005399,29]
[341100188,1730366836322,-700.0,0.0005399,29]
[341100189,1730366836341,-700.0,0.0005399,29]
[341100190,1730366836360,-700.0,0.0005399,29]
[341100191,1730366836380,-700.0,0.0005399,39]
[341100192,1730366836400,-500.0,0.00054795,120]
[341100193,1730366836420,-182.29,0.00055089,2]
[341100194,1730366836439,-7923.24744419,0.00055184,120]
[341100195,1730366836463,-500.0,0.00055223,120]
[341100196,1730366836485,-157.73,0.0005589,2]
[341100197,1730366836505,-250.0,0.00055935,120]
[341100198,1730366836527,-1446.38,0.00056073,2]
[341100199,1730366836546,-7923.24744419,0.00056184,120]
[341100200,1730366836567,-162.03,0.00056253,120]
[341100201,1730366836589,-1004.83,0.00056668,30]
[341100202,1730366836611,-1075.57,0.00056762,120]
[341100203,1730366836630,-1000.0,0.00057069,120]
[341100204,1730366836650,-537.08,0.00057168,120]
[341100205,1730366836671,-7923.24744419,0.00057184,120]
[341100206,1730366836694,-182.29,0.00057353,2]
[341100207,1730366836714,-152.0,0.00057674,4]
[341100208,1730366836734,-7923.24744419,0.00058184,120]
[341100209,1730366836753,-250.0,0.00058304,120]
[341100210,1730366836776,-1000.0,0.0005878,2]
[341100211,1730366836796,-654.559,0.00058859,116]
[341100212,1730366836815,-145644.51595662,0.0005888,120]
[341100213,1730366836835,-945.34258086,0.000589,15]
[341100214,1730366836854,-2103.60705931,0.00059,60]
[341100215,1730366836874,-500.0,0.0005909,120]
[341100216,1730366836894,-7923.24744419,0.00059184,120]
[341100217,1730366836917,-168.75,0.00059311,120]
[341100218,1730366836937,-1122.2,0.00059399,120]
[341100219,1730366836958,-500.0,0.00059399,120]
[341100220,1730366836978,-530.30981,0.00059452,120]
[341100221,1730366836998,-700.0,0.00059469,41]
[341100222,1730366837017,-500.0,0.00059499,120]
[341100223,1730366837036,-500.0,0.00059499,120]
[341100224,1730366837055,-500.0,0.00059499,120]
[341100225,1730366837074,-500.0,0.00059499,120]
[341100226,1730366837094,-182.29,0.00059617,2]
[341100227,1730366837114,-195.71774672,0.00059799,10]
[341100228,1730366837134,-500.0,0.00059799,120]
[341100229,1730366837153,-500.0,0.00059799,120]
[341100230,1730366837173,-500.0,0.00059799,120]
[341100231,1730366837192,-500.0,0.00059799,120]
[341100232,1730366837213,-500.0,0.00059799,120]
[341100233,1730366837234,-500.0,0.000598,120]
[341100234,1730366837254,-424.6858336,0.00059806,2]
[341100235,1730366837276,-300.0,0.00059899,120]
[341100236,1730366837296,-500.0,0.00059899,120]
[341100237,1730366837315,-170.49259751,0.000599,79]
[341100238,1730366837335,-500.0,0.000599,120]
[341100239,1730366837355,-500.0,0.000599,120]
[341100240,1730366837374,-500.0,0.000599,120]
[341100241,1730366837395,-500.0,0.000599,120]
[341100242,1730366837415,-500.0,0.000599,120]
[341100243,1730366837436,-500.0,0.000599,120]
[341100244,1730366837457,-500.0,0.000599,120]
[341100245,1730366837477,-500.0,0.000599,120]
[341100246,1730366837497,-500.0,0.000599,120]
[341100247,1730366837517,-500.0,0.000599,120]
[341100248,1730366837536,-500.0,0.000599,120]
[341100249,1730366837555,-500.0,0.000599,120]
[341100250,1730366837575,-500.0,0.000599,120]
[341100251,1730366837594,-500.0,0.000599,120]
[341100252,1730366837614,-500.0,0.000599,120]
[341100253,1730366837634,-500.0,0.000599,120]
[341100254,1730366837654,-500.0,0.000599,120]
[341100255,1730366837675,-500.0,0.000599,120]
[341100256,1730366837695,-500.0,0.000599,120]
[341100257,1730366837720,-500.0,0.000599,120]
[341100258,1730366837740,-500.0,0.000599,120]
[341100259,1730366837761,-24146.0,0.000599,120]
[341100260,1730366837782,-500.0,0.0005999,120]
[341100261,1730366837802,-297.28720943,0.00059998,120]
[341100262,1730366837824,-2000.0,0.00059999,15]
[341100263,1730366837844,-200.0,0.00059999,15]
[341100264,1730366837863,-499.40841579,0.00059999,120]
[341100265,1730366837885,-500.0,0.00059999,120]
[341100266,1730366837905,-500.0,0.00059999,120]
[341100267,1730366837925,-500.0,0.00059999,120]
[341100268,1730366837946,-500.0,0.00059999,120]
[341100269,1730366837966,-500.0,0.00059999,120]
[341100270,1730366837986,-500.0,0.00059999,120]
[341100271,1730366838006,-500.0,0.00059999,120]
[341100272,1730366838027,-939.0,0.00059999,120]
[341100273,1730366838055,-999.0,0.00059999,120]
[341100274,1730366838078,-1122.2,0.00059999,120]
[341100275,1730366838101,-1122.2,0.00059999,120]
[341100276,1730366838123,-1122.2,0.00059999,120]
[341100277,1730366838152,-1122.2,0.00059999,120]
[341100278,1730366838172,-1122.2,0.00059999,120]
[341100279,1730366838194,-1122.2,0.00059999,120]
[341100280,1730366838216,-1122.2,0.00059999,120]
[341100281,1730366838237,-500.0,0.00059999,120]
[341100282,1730366838259,-500.0,0.00059999,120]
[341100283,1730366838281,-500.0,0.00059999,120]
[341100284,1730366838302,-501.43726898,0.00059999,120]
[341100285,1730366838324,-500.0,0.00059999,120]
[341100286,1730366838347,-500.0,0.00059999,120]
[341100287,1730366838368,-500.0,0.00059999,120]
[341100288,1730366838391,-500.0,0.00059999,120]
[341100289,1730366838412,-500.0,0.00059999,120]
[341100290,1730366838433,-500.0,0.00059999,120]
[341100291,1730366838455,-500.0,0.00059999,120]
[341100292,1730366838477,-226.91466311,0.0006,2]
[341100293,1730366838500,-300.0,0.0006,120]
[341100294,1730366838522,-2000.0,0.0006,120]
[341100295,1730366838544,-30542.69848105,0.0006,30]
[341100296,1730366838566,-150.0,0.0006,30]
[341100297,1730366838587,-3152.66,0.0006,120]
[341100298,1730366838607,-2000.0,0.0006,2]
[341100299,1730366838627,-418.17533682,0.0006,120]
[341100300,1730366838649,-10000.0,0.0006,120]
[341100301,1730366838671,-6890.76181131,0.0006,120]
[341100302,1730366842171,-5444.86136693,0.0006,120]
[341100303,1730366842192,-349.05124052,0.0006,120]
[341100304,1730366842212,-11010.1304096,0.0006,120]
[341100328,1730367031896,-154.94,0.00057596,2]
[341100329,1730367031905,-194.79,0.00059377,120]
[341100330,1730367031914,-500.3413,0.000598,120]
[341100331,1730367031923,-154.94,0.0005986,2]
[341100332,1730367031933,-500.0,0.00059899,120]
[341100333,1730367031941,-500.0,0.00059899,120]
[341100334,1730367031950,-28649.22935783,0.000599,120]
[341100335,1730367031962,-792.5901174,0.000599,120]
[341100336,1730367031973,-448.97184433,0.000599,120]
[341100337,1730367032053,-870.02705689,0.000599,120]
[341100338,1730367032064,-3163.61163349,0.000599,120]
[341100339,1730367032075,-527.8743284,0.000599,120]
[341100429,1730367039161,-21102.69566166,0.000599,120]
[341100430,1730367039170,-284.26170892,0.000599,31]
[341100431,1730367039181,-619.8337,0.000599,2]
[341100432,1730367039191,-999.0,0.00059999,120]
[341100433,1730367039200,-748.14,0.00059999,120]
[341100434,1730367039209,-748.14,0.00059999,120]
[341100435,1730367039218,-748.14,0.00059999,120]
[341100436,1730367039227,-748.14,0.00059999,120]
[341100437,1730367039237,-748.14,0.00059999,120]
[341100438,1730367039246,-748.14,0.00059999,120]
[341100439,1730367039255,-748.14,0.00059999,120]
[341100440,1730367039265,-50000.0,0.0006,60]
[341100441,1730367039275,-103663.86948847,0.0006,120]
[341100442,1730367039284,-8615.8364539,0.0006,120]
[341100443,1730367039294,-2480.64534495,0.0006,120]
[341100444,1730367039303,-224.3924869,0.0006,120]
[341100445,1730367039312,-5248.0097862,0.0006,120]
[341100446,1730367039321,-256.9,0.0006,90]
[341100447,1730367039330,-1000.0,0.0006,120]
[341100448,1730367039340,-1000.0,0.0006,120]
[341100449,1730367039349,-1000.0,0.0006,120]
[341100450,1730367039358,-604.0,0.0006,120]
[341100451,1730367039367,-100000.0,0.0006,120]
[341100452,1730367039376,-70000.0,0.0006,120]
[341100453,1730367039386,-1000.0,0.0006,2]
[341100454,1730367039395,-20000.0,0.0006,120]
[341100455,1730367039405,-400.0,0.0006,120]
[341100456,1730367039414,-793.26412383,0.0006,30]
[341100457,1730367039423,-177.14184776,0.0006,60]
[341100458,1730367039432,-149856.76061484,0.0006,120]
[341100459,1730367039442,-5000.0,0.0006,120]
[341100460,1730367039451,-1311.52614759,0.0006,120]
[341100461,1730367039464,-400.0,0.0006,7]
[341100462,1730367039473,-10100.34043125,0.0006,30]
[341100463,1730367039483,-150.59199593,0.0006,120]
[341100464,1730367039492,-2756.03318999,0.0006,120]
[341100465,1730367039501,-9995.3896272,0.0006,120]
[341100466,1730367039511,-5000.0,0.0006,120]
[341100467,1730367039520,-5000.0,0.0006,120]
[341100468,1730367039529,-5000.0,0.0006,120]
[341100469,1730367039538,-781.0,0.0006,120]
[341100470,1730367039547,-1001.0,0.0006,120]
[341100471,1730367039557,-2543.046084,0.0006,120]
[341100472,1730367039567,-1361.23322021,0.0006,120]
[341100473,1730367039576,-2251.0,0.0006,6]
[341100475,1730367039588,-151.0,0.0006,120]
[341100476,1730367039597,-412.40955539,0.0006,120]
[341100477,1730367039606,-430.44049578,0.0006,120]
[341100478,1730367039615,-859.37882307,0.0006,97]
[341100479,1730367039624,-93676.43362502,0.0006,120]
[341100480,1730367039640,-2200.46244,0.0006,120]
[341100482,1730367039945,-2235.76200254,0.0006,120]
[341100483,1730367039957,-933.7918461,0.0006,120]
[341100484,1730367039968,-465.13130362,0.0006,120]
[341100489,1730367043923,-735.0,0.0006,120]
[341100490,1730367044219,-721.59048709,0.0006,120]
[341100576,1730367141571,200.0,0.00055,120]
[341100577,1730367146050,-300.0,0.00055274,120]
[341100578,1730367164847,160.0,0.0004,30]
[341100580,1730367209908,166.79,0.00015342,2]
[341100582,1730367214852,9373.21,0.00050866,120]
[341100583,1730367214877,6473.28488836,0.00050866,120]
[341100584,1730367232808,3326.71511164,0.0005,7]
[341100585,1730367232831,10000.0,0.0005,7]
[341100586,1730367232855,3796.74734756,0.0005,7]
[341100587,1730367936321,241.16,0.0005,2]
[341100588,1730368038145,-428.59285037,0.00053711,30]
[341100589,1730368038167,-416.89719877,0.00053899,2]
[341100590,1730368038188,-700.0,0.00053999,29]
[341100591,1730368038209,-700.0,0.00053999,29]
[341100592,1730368038229,-700.0,0.00053999,29]
[341100593,1730368038251,-700.0,0.00053999,29]
[341100594,1730368038272,-700.0,0.00053999,29]
[341100595,1730368038293,-700.0,0.00053999,39]
[341100596,1730368038314,-2000.0,0.00055,120]
[341100597,1730368038334,-154.94,0.00057073,2]
[341100598,1730368038355,-150.103117,0.00057498,120]
[341100599,1730368038375,-150.103117,0.00058498,120]
[341100600,1730368038395,-250.0,0.00058819,120]
[341100601,1730368038415,-324.84,0.00058857,30]
[341100602,1730368038436,-157.26,0.00059067,120]
[341100603,1730368038456,-250.0,0.00059347,120]
[341100604,1730368038476,-700.0,0.00059478,41]
[341100605,1730368038496,-150.103117,0.00059498,120]
[341100606,1730368038516,-154.94,0.00059603,2]
[341100607,1730368038536,-1000.0,0.0005971,120]
[341100608,1730368038558,-523.647,0.00059767,119]
[341100609,1730368038579,-850.80832281,0.000599,15]
[341100610,1730368038599,-265.31092826,0.000599,31]
[341100611,1730368038619,-539.21481304,0.00059999,120]
[341100612,1730368038638,-500.0,0.00059999,120]
[341100613,1730368038658,-322.64,0.00059999,120]
[341100614,1730368038678,-506.99248409,0.00059999,120]
[341100615,1730368038697,-500.0,0.00059999,120]
[341100616,1730368038717,-504.67433389,0.00059999,120]
[341100617,1730368038737,-504.27813161,0.00059999,120]
[341100618,1730368038757,-504.07336125,0.00059999,120]
[341100619,1730368038780,-165.78810127,0.00059999,120]
[341100620,1730368038801,-500.0,0.00059999,120]
[341100621,1730368038822,-411.48268445,0.00059999,120]
[341100622,1730368038842,-514.86657391,0.00059999,120]
[341100623,1730368038864,-191.99631859,0.00059999,120]
[341100624,1730368038884,-500.0,0.00059999,120]
[341100625,1730368038905,-500.0,0.00059999,120]
[341100626,1730368038926,-500.0,0.00059999,120]
[341100627,1730368038946,-500.0,0.00059999,120]
[341100628,1730368038965,-500.0,0.00059999,120]
[341100629,1730368038985,-500.0,0.00059999,120]
[341100630,1730368039005,-500.0,0.00059999,120]
[341100631,1730368039024,-500.0,0.00059999,120]
[341100632,1730368039044,-500.0,0.00059999,120]
[341100633,1730368039065,-474.95941796,0.00059999,120]
[341100635,1730368232032,-700.0,0.00054,29]
[341100636,1730368232043,-700.0,0.00054,29]
[341100637,1730368232052,-700.0,0.00054,29]
[341100638,1730368232062,-700.0,0.00054,29]
[341100639,1730368232072,-700.0,0.00054,29]
[341100640,1730368232081,-700.0,0.00054,39]
[341100641,1730368232090,-78.67181557,0.00057552,2]
[341100642,1730368232102,-128.34818443,0.00057552,2]
[341100643,1730368232111,-250.0,0.0005938,120]
[341100644,1730368232120,-201.11528191,0.00059479,41]
[341100645,1730368232131,-498.88471809,0.00059479,41]
[341100646,1730368232140,-238.71381871,0.00059515,120]
[341100647,1730368232151,-292.19618129,0.00059515,120]
[341100648,1730368232160,-207.02,0.00059816,2]
[341100649,1730368232170,-54.82958858,0.00059973,2]
[341100650,1730368232559,-445.17041142,0.00059973,2]
[341100651,1730368232569,-300.0,0.00059998,9]
[341100652,1730368232579,-25.04058204,0.00059999,120]
[341100653,1730368232589,-500.0,0.00059999,120]
[341100654,1730368232598,-500.0,0.00059999,120]
[341100655,1730368232608,-500.0,0.00059999,120]
[341100656,1730368232617,-259.62365895,0.00059999,120]
[341100657,1730368232681,-341.92634105,0.00059999,120]
[341100658,1730368232689,-500.0,0.00059999,120]
[341100659,1730368232699,-500.0,0.00059999,120]
[341100660,1730368232707,-500.0,0.00059999,120]
[341100661,1730368232717,-500.0,0.00059999,120]
[341100662,1730368232725,-500.0,0.00059999,120]
[341100663,1730368232734,-500.0,0.00059999,120]
[341100664,1730368232743,-6.02795318,0.00059999,120]
[341100665,1730368232758,-493.97204682,0.00059999,120]
[341100666,1730368232767,-220.1610301,0.00059999,120]
[341100667,1730368232777,-279.8389699,0.00059999,120]
[341100668,1730368232787,-259.22726594,0.00059999,120]
[341100670,1730368238353,-500.0,0.00059999,120]
[341100671,1730368238363,-500.0,0.00059999,120]
[341100672,1730368238373,-500.0,0.00059999,120]
[341100673,1730368238384,-500.0,0.00059999,120]
[341100674,1730368238394,-529.93,0.00059999,120]
[341100675,1730368238404,-529.93,0.00059999,120]
[341100676,1730368238413,-529.93,0.00059999,120]
[341100677,1730368238423,-529.93,0.00059999,120]
[341100678,1730368238433,-603.33250616,0.00059999,120]
[341100679,1730368238442,-500.0,0.00059999,2]
[341100680,1730368238452,-500.0,0.00059999,2]
[341100681,1730368238463,-500.0,0.00059999,2]
[341100682,1730368238473,-500.0,0.00059999,2]
[341100683,1730368238483,-495.71675659,0.00059999,2]
[341100684,1730368238492,-37.17604446,0.00059999,120]
[341100685,1730368240204,-0.25152606,0.00059999,120]
[341100697,1730368243179,-462.57242948,0.00059999,120]
[341100698,1730368243188,-500.0,0.00059999,120]
[341100699,1730368243198,-500.0,0.00059999,120]
[341100700,1730368243207,-500.0,0.00059999,120]
[341100701,1730368243217,-500.0,0.00059999,120]
[341100702,1730368243227,-500.0,0.00059999,120]
[341100703,1730368243236,-500.0,0.00059999,120]
[341100704,1730368243246,-500.0,0.00059999,120]
[341100705,1730368243255,-7359.5985531,0.0006,50]
[341100728,1730368310096,157.77,0.00015342,2]
[341100732,1730368522689,5962.09265244,0.00044594,20]
[341100733,1730368522714,10000.0,0.00044594,20]
[341100735,1730368710455,418.918,0.00036567,45]
[341100736,1730368827097,-10000.0,0.00044594,20]
[341100737,1730368836304,-10000.0,0.00044594,20]
[341100738,1730368842013,-10000.0,0.00044594,20]
[341100739,1730368894206,211.0,0.000296,2]
[341100740,1730368894802,201.0,0.000296,2]
[341100742,1730369099977,157.73,0.00015342,2]
[341100744,1730369120391,9011.352,0.00029,7]
[341100745,1730369120416,10000.0,0.00029,7]
[341100746,1730369120440,2618.648,0.00029,7]
[341100747,1730369254151,-308.00699988,0.00044594,20]
[341100748,1730369306515,550.0,0.00015,2]
[341100749,1730369307596,600.0,0.00017,2]
[341100750,1730369346150,-49380.19002,0.00044594,20]
[341100751,1730369346176,-124810.203,0.00044594,20]
[341100752,1730369351304,-6927.514454,0.00044594,20]
[341100753,1730369369160,-2999.99,0.00043,2]
[341100754,1730369369182,-3000.0,0.00043,2]
[341100755,1730369369202,-3000.0,0.00043,2]
[341100756,1730369369222,-3000.0,0.00043,2]
[341100757,1730369369243,-3000.0,0.00043,2]
[341100758,1730369369263,-1190.28,0.00043,2]
[341100759,1730369369284,-10350.13998,0.00044594,20]
[341100760,1730369373143,-79389.85289368,0.00044594,20]
[341100761,1730369373163,-500.0,0.000446,2]
[341100762,1730369373183,-500.0,0.00050079,2]
[341100763,1730369373202,-8416.0,0.000507,120]
[341100764,1730369373223,-765.72749052,0.000512,15]
[341100765,1730369374678,943.27491179,0.00044593,120]
[341100766,1730369380686,5000.0,0.0004159,2]
[341100767,1730369380770,5000.0,0.00041201,2]
[341100768,1730369380842,3496.56,0.00041736,2]
[341100769,1730369382161,153.0,0.00049258,31]
[341100770,1730369382365,153.0,0.00049258,31]
[341100771,1730369382591,153.0,0.00049258,31]
[341100772,1730369382796,153.0,0.00049258,31]
[341100773,1730369383001,153.0,0.00049258,31]
[341100774,1730369383204,153.0,0.00049258,31]
[341100775,1730369383403,153.0,0.00049258,31]
[341100776,1730369383737,153.0,0.00049258,31]
[341100777,1730369383934,153.0,0.00049258,31]
[341100778,1730369384147,153.0,0.00049258,31]
[341100779,1730369384239,2618.93336334,0.00041176,2]
[341100780,1730369432277,-552.68386261,0.00041111,2]
[341100781,1730369432288,-3538.57548688,0.00041111,2]
[341100785,1730369438576,-580.5753858,0.00041111,2]
[341100788,1730369440352,-184.01526471,0.00041111,2]
[341100789,1730369440361,-172.25568809,0.00041115,2]
[341100790,1730369440609,-579.30431191,0.00041115,2]
[341100791,1730369440619,-35.26362952,0.00041167,2]
[341100792,1730369440631,-1392.82637048,0.00041167,2]
[341100793,1730369440640,-3517.70942191,0.00041212,2]
[341100795,1730369443296,-3496.56,0.0004121,2]
[341100796,1730369443306,-1482.29057809,0.00041212,2]
[341100797,1730369443315,-2501.01,0.00041215,2]
[341100798,1730369443324,-150.0,0.00041236,2]
[341100799,1730369443333,-972.39328312,0.00041244,2]
[341100800,1730369444416,150.0,0.000375,2]
[341100801,1730369446813,-1528.61671688,0.00041244,2]
[341100802,1730369446823,-5000.0,0.0004129,2]
[341100803,1730369446832,-4137.05,0.00041446,2]
[341100804,1730369446842,-5000.0,0.00041468,2]
[341100805,1730369446851,-22053.36,0.00041637,2]
[341100806,1730369446861,-5000.0,0.00041723,2]
[341100807,1730369446870,-1710.82,0.00041789,2]
[341100808,1730369446879,-5000.0,0.00041799,2]
[341100809,1730369446888,-5000.0,0.0004184,2]
[341100810,1730369446898,-369.32,0.00041848,2]
[341100811,1730369446908,-5000.0,0.00041853,2]
[341100812,1730369446917,-4595.77,0.00049258,2]
[341100813,1730369446926,-153.0,0.00049258,31]
[341100814,1730369446936,-153.0,0.00049258,31]
[341100815,1730369446946,-153.0,0.00049258,31]
[341100816,1730369446955,-153.0,0.00049258,31]
[341100817,1730369446964,-153.0,0.00049258,31]
[341100818,1730369446973,-153.0,0.00049258,31]
[341100819,1730369446982,-153.0,0.00049258,31]
[341100820,1730369446991,-153.0,0.00049258,31]
[341100821,1730369447000,-1086.0,0.00051634,120]
[341100822,1730369447010,-200.0,0.00053514,10]
[341100823,1730369447019,-200.0,0.00053554,10]
[341100824,1730369447028,-200.0,0.00053558,10]
[341100825,1730369447037,-200.0,0.00053618,10]
[341100826,1730369447047,-200.0,0.00053743,10]
[341100827,1730369447056,-200.0,0.00053773,10]
[341100828,1730369447066,-765.72749044,0.00053833,15]
[341100829,1730369447076,-1933.34,0.00053992,2]
[341100830,1730369447085,-185.92,0.00054082,120]
[341100831,1730369447094,-810.0,0.00054795,120]
[341100832,1730369447104,-418.918,0.00054925,104]
[341100833,1730369447113,-157.73,0.0005589,2]
[341100834,1730369447123,-167.03,0.00055977,2]
[341100835,1730369447132,-765.72749044,0.00056467,15]
[341100836,1730369447141,-1138.88310659,0.000571,120]
[341100837,1730369447150,-186.31,0.00057126,2]
[341100838,1730369447160,-151.103117,0.00057498,120]
[341100839,1730369447170,-1159.59,0.00057911,2]
[341100840,1730369447179,-700.0,0.00058,48]
[341100841,1730369447189,-805.95246504,0.00058,48]
[341100842,1730369447198,-150.103117,0.00058498,120]
[341100843,1730369447209,-250.0,0.00058976,120]
[341100844,1730369447218,-765.72749044,0.000591,15]
[341100845,1730369447227,-150.103117,0.00059198,120]
[341100846,1730369447237,-186.31,0.0005939,2]
[341100847,1730369447246,-177.89075568,0.00059399,120]
[341100848,1730369447255,-17513.2001439,0.000594,2]
[341100849,1730369447265,-155.83,0.00059414,120]
[341100850,1730369447275,-1000.0,0.00059484,120]
[341100851,1730369447284,-150.103117,0.00059498,120]
[341100852,1730369447294,-500.0,0.00059726,120]
[341100853,1730369447303,-500.0,0.00059726,120]
[341100854,1730369447312,-500.0,0.00059726,120]
[341100855,1730369447322,-500.0,0.00059726,120]
[341100856,1730369447331,-188.41298754,0.00059726,120]
[341100857,1730369447340,-500.0,0.00059726,120]
[341100858,1730369447349,-714.56,0.00059726,120]
[341100859,1730369447359,-173.103117,0.00059798,120]
[341100860,1730369447369,-53680.46312109,0.000598,30]
[341100861,1730369447379,-247.62353308,0.000599,31]
[341100862,1730369447389,-5143.887485,0.000599,2]
[341100863,1730369447398,-4114.7456867,0.000599,2]
[341100864,1730369447408,-8036.4098391,0.000599,120]
[341100865,1730369447417,-150.0,0.00059915,14]
[341100866,1730369447427,-156.21976284,0.00059922,14]
[341100867,1730369447437,-222.0,0.0005999,30]
[341100868,1730369447446,-283.579709,0.0005999,7]
[341100869,1730369447456,-150.85,0.0005999,120]
[341100870,1730369447466,-150.85,0.0005999,120]
[341100871,1730369447476,-150.85,0.0005999,120]
[341100872,1730369447486,-150.85,0.0005999,120]
[341100873,1730369447496,-150.85,0.0005999,120]
[341100874,1730369447505,-150.85,0.0005999,120]
[341100875,1730369447514,-500.0,0.00059999,120]
[341100876,1730369447524,-500.0,0.00059999,120]
[341100877,1730369447533,-500.0,0.00059999,120]
[341100878,1730369447543,-500.0,0.00059999,120]
[341100879,1730369447552,-500.0,0.00059999,120]
[341100880,1730369447562,-500.0,0.00059999,120]
[341100881,1730369447571,-500.0,0.00059999,120]
[341100882,1730369447580,-500.0,0.00059999,120]
[341100883,1730369447590,-500.0,0.00059999,120]
[341100884,1730369447599,-500.0,0.00059999,120]
[341100885,1730369447608,-500.0,0.00059999,120]
[341100886,1730369447619,-500.0,0.00059999,120]
[341100887,1730369447628,-284.23784148,0.00059999,120]
[341100888,1730369447637,-500.0,0.00059999,120]
[341100889,1730369447646,-500.0,0.00059999,120]
[341100890,1730369447655,-263.22651037,0.00059999,120]
[341100891,1730369447665,-277.8254703,0.00059999,120]
[341100892,1730369447674,-500.0,0.00059999,120]
[341100893,1730369447684,-500.0,0.00059999,120]
[341100894,1730369447693,-500.0,0.00059999,120]
[341100895,1730369447703,-500.0,0.00059999,120]
[341100896,1730369447712,-500.0,0.00059999,120]
[341100897,1730369447721,-500.0,0.00059999,120]
[341100898,1730369447730,-500.0,0.00059999,120]
[341100899,1730369447740,-500.0,0.00059999,120]
[341100900,1730369447749,-500.0,0.00059999,120]